Workbook

Sheet Feuil1

Sheet Étape 1
B4: RxCx | C4: Heure | D4: Reunion | E4: Course 2022 | F4: Partant | G4: Distance | H4: Allocation | I4: Type
B5: R2C2 | C5: 12H30 | D5: TONGRES | E5: PRIX-L-HELICONIA-BELGIQUE | F5: 10 | G5: 2650m | H5: 2500 | I5: Attelé
B6: R3C1 | C6: 12H45 | D6: NANTES | E6: PRIX-FAUCHELEVENT | F6: 10 | G6: 1400m | H6: 18000 | I6: Plat
B7: R3C2 | C7: 13H15 | D7: NANTES | E7: PRIX-DE-SAINTE-ANNE | F7: 8 | G7: 1400m | H7: 18000 | I7: Plat
B8: R4C1 | C8: 14H07 | D8: LISIEUX | E8: PRIX-DE-PONT-L-EVEQUE | F8: 12 | G8: 2675m | H8: 6000 | I8: Attelé
B9: R3C4 | C9: 14H24 | D9: NANTES | E9: PRIX-JULES-VERNE | F9: 8 | G9: 1600m | H9: 18000 | I9: Plat
B10: R4C3 | C10: 15H15 | D10: LISIEUX | E10: PRIX-DES-VANS-BARBOT | F10: 12 | G10: 2725m | H10: 20000 | I10: Monté
B11: R6C3 | C11: 15H25 | D11: NEWMARKET-JULY | E11: CLOSE-BROTHERS-JULY-STAKES-(CLASS-1)-(GROUP-2) | F11: 8 | G11: 1200m | H11: 100000 | I11: Plat
B12: R4C4 | C12: 15H49 | D12: LISIEUX | E12: PRIX-DE-BLANGY-LE-CHATEAU | F12: 11 | G12: 2725m | H12: 19000 | I12: Attelé
B13: R3C8 | C13: 16H40 | D13: NANTES | E13: PRIX-ELM-PARK | F13: 10 | G13: 3100m | H13: 17000 | I13: Plat
B14: R4C7 | C14: 17H32 | D14: LISIEUX | E14: PRIX-LES-BRUYERES-CARRE | F14: 12 | G14: 2675m | H14: 28000 | I14: Attelé
B15: R1C2 | C15: 17H50 | D15: PARISLONGCHAMP | E15: PRIX-DU-JARDIN-DE-L-AVRE (Pick5) | F15: 11 | G15: 1850m | H15: 28000 | I15: Plat
B16: R5C1 | C16: 18H42 | D16: VICHY | E16: PRIX-HOTEL-DES-PRINCES | F16: 10 | G16: 1609m | H16: 22000 | I16: Attelé
B17: R5C3 | C17: 19H50 | D17: VICHY | E17: PRIX-CENTRE-FRANCE-LA-MONTAGNE | F17: 8 | G17: 1609m | H17: 22000 | I17: Attelé
B18: R5C4 | C18: 20H32 | D18: VICHY | E18: KRAFFT-SPEED-CUP | F18: 11 | G18: 1609m | H18: 36000 | I18: Attelé

Sheet Fin
C3: RCRX | D3: HIPPODROME | E3: DÉPART | F3: DISC | G3: PART | H3: CHEVAL | I3: POSITION | J3: MUSIQUE | K3: MUSIQUE | L3: MUSIQUE | M3: RÉSULTAT | T3: 1 | U3: 2
T4: 2 | U4: 3
C5: R2C2 | D5: TONGRES | E5: 12H30 | F5: Attelé | G5: 10 | I5: 3 | M5: =IF(COUNTIF(J5:L5,1)+COUNTIF(J5:L5,2)+COUNTIF(J5:L5,3)>=2,"J","L") -> L | T5: 3 | U5: 2
C6: R3C1 | D6: NANTES | E6: 12H45 | F6: Plat | G6: 10 | I6: 2 | M6: =IF(COUNTIF(J6:L6,1)+COUNTIF(J6:L6,2)+COUNTIF(J6:L6,3)>=2,"J","L") -> L | T6: 4 | U6: 2
C7: R3C2 | D7: NANTES | E7: 13H15 | F7: Plat | G7: 8 | I7: 3 | M7: L | T7: 5 | U7: 1
C8: R4C1 | D8: LISIEUX | E8: 14H07 | F8: Attelé | G8: 12 | I8: 2 | M8: L | T8: 6 | U8: 1
C9: R3C4 | D9: NANTES | E9: 14H24 | F9: Plat | G9: 8 | I9: 2 | M9: L | T9: 7 | U9: 2
C10: R4C3 | D10: LISIEUX | E10: 15H15 | F10: Monté | G10: 12 | I10: 2 | M10: L | T10: 8 | U10: 1
C11: R6C3 | D11: NEWMARKET-JULY | E11: 15H25 | F11: Plat | G11: 8 | I11: 2 | M11: L
C12: R4C4 | D12: LISIEUX | E12: 15H49 | F12: Attelé | G12: 11 | I12: 2 | M12: L
C13: R3C8 | D13: NANTES | E13: 16H40 | F13: Plat | G13: 10 | I13: 1 | M13: L
C14: R4C7 | D14: LISIEUX | E14: 17H32 | F14: Attelé | G14: 12 | I14: 2 | M14: L
C15: R1C2 | D15: PARISLONGCHAMP | E15: 17H50 | F15: Plat | G15: 11 | I15: 3 | M15: L
C16: R5C1 | D16: VICHY | E16: 18H42 | F16: Attelé | G16: 10 | I16: 2 | M16: L
C17: R5C3 | D17: VICHY | E17: 19H50 | F17: Attelé | G17: 8 | I17: 2 | M17: L
C18: R5C4 | D18: VICHY | E18: 20H32 | F18: Attelé | G18: 11 | I18: 2 | M18: L
M19: L
M20: L
M21: L
M22: L
M23: L
M24: L
M25: L
M26: L
M27: L
M28: L
M29: L
M30: L
M31: L
M32: L
M33: L
M34: L
M35: L
M36: L
M37: L
M38: L
M39: L

Sheet Mes Jeux
C2: RCRX | D2: HIPPODROME | E2: DÉPART | F2: DISC | G2: PART | H2: CHEVAL | J2: RCRX | K2: HIPPODROME | L2: DÉPART | M2: CHEVAL
C4: R3C2 | D4: LA-TESTE | E4: 12H15 | F4: Haies | G4: 8 | H4: 3 | J4: =Fin!C5 -> R2C2 | K4: =Fin!D5 -> TONGRES | L4: =Fin!E5 -> 12H30 | M4: =Fin!H5 -> 0
C5: R2C5 | D5: SENONNES-POUANCE | E5: 14H02 | F5: Plat | G5: 9 | H5: 6 | J5: =Fin!C6 -> R3C1 | K5: =Fin!D6 -> NANTES | L5: =Fin!E6 -> 12H45 | M5: =Fin!H6 -> 0
C6: R3C8 | D6: LA-TESTE | E6: 15H30 | F6: Plat | G6: 12 | H6: 3 | J6: =Fin!C7 -> R3C2 | K6: =Fin!D7 -> NANTES | L6: =Fin!E7 -> 13H15 | M6: =Fin!H7 -> 0
C7: R5C7 | D7: HAPPY-VALLEY | E7: 15H45 | F7: Plat | G7: 12 | H7: 7 | J7: =Fin!C8 -> R4C1 | K7: =Fin!D8 -> LISIEUX | L7: =Fin!E8 -> 14H07 | M7: =Fin!H8 -> 0
C8: R1C1 | D8: ENGHIEN | E8: 16H40 | F8: Attelé | G8: 8 | H8: 2 | J8: =Fin!C9 -> R3C4 | K8: =Fin!D9 -> NANTES | L8: =Fin!E9 -> 14H24 | M8: =Fin!H9 -> 0
C9: R4C2 | D9: HYERES | E9: 16H57 | F9: Attelé | G9: 9 | H9: 3 | J9: =Fin!C10 -> R4C3 | K9: =Fin!D10 -> LISIEUX | L9: =Fin!E10 -> 15H15 | M9: =Fin!H10 -> 0
C10: R4C3 | D10: HYERES | E10: 17H32 | F10: Attelé | G10: 12 | H10: 3 | J10: =Fin!C11 -> R6C3 | K10: =Fin!D11 -> NEWMARKET-JULY | L10: =Fin!E11 -> 15H25 | M10: =Fin!H11 -> 0
C11: R1C3 | D11: ENGHIEN | E11: 17H50 | F11: Attelé | G11: 10 | H11: 4 | J11: =Fin!C12 -> R4C4 | K11: =Fin!D12 -> LISIEUX | L11: =Fin!E12 -> 15H49 | M11: =Fin!H12 -> 0
C12: R4C7 | D12: HYERES | E12: 19H50 | F12: Attelé | G12: 11 | H12: 5 | J12: =Fin!C13 -> R3C8 | K12: =Fin!D13 -> NANTES | L12: =Fin!E13 -> 16H40 | M12: =Fin!H13 -> 0
C13: R1C8 | D13: ENGHIEN | E13: 20H45 | F13: Attelé | G13: 9 | H13: 2 | J13: =Fin!C14 -> R4C7 | K13: =Fin!D14 -> LISIEUX | L13: =Fin!E14 -> 17H32 | M13: =Fin!H14 -> 0
J14: =Fin!C15 -> R1C2 | K14: =Fin!D15 -> PARISLONGCHAMP | L14: =Fin!E15 -> 17H50 | M14: =Fin!H15 -> 0
J15: =Fin!C16 -> R5C1 | K15: =Fin!D16 -> VICHY | L15: =Fin!E16 -> 18H42 | M15: =Fin!H16 -> 0
J16: =Fin!C17 -> R5C3 | K16: =Fin!D17 -> VICHY | L16: =Fin!E17 -> 19H50 | M16: =Fin!H17 -> 0
J17: =Fin!C18 -> R5C4 | K17: =Fin!D18 -> VICHY | L17: =Fin!E18 -> 20H32 | M17: =Fin!H18 -> 0
J18: =Fin!C19 -> 0 | K18: =Fin!D19 -> 0 | L18: =Fin!E19 -> 0 | M18: =Fin!H19 -> 0
J19: =Fin!C20 -> 0 | K19: =Fin!D20 -> 0 | L19: =Fin!E20 -> 0 | M19: =Fin!H20 -> 0
J20: =Fin!C21 -> 0 | K20: =Fin!D21 -> 0 | L20: =Fin!E21 -> 0 | M20: =Fin!H21 -> 0
J21: =Fin!C22 -> 0 | K21: =Fin!D22 -> 0 | L21: =Fin!E22 -> 0 | M21: =Fin!H22 -> 0
J22: =Fin!C23 -> 0 | K22: =Fin!D23 -> 0 | L22: =Fin!E23 -> 0 | M22: =Fin!H23 -> 0
J23: =Fin!C24 -> 0 | K23: =Fin!D24 -> 0 | L23: =Fin!E24 -> 0 | M23: =Fin!H24 -> 0
J24: =Fin!C25 -> 0 | K24: =Fin!D25 -> 0 | L24: =Fin!E25 -> 0 | M24: =Fin!H25 -> 0
J25: =Fin!C26 -> 0 | K25: =Fin!D26 -> 0 | L25: =Fin!E26 -> 0 | M25: =Fin!H26 -> 0
J26: =Fin!C27 -> 0 | K26: =Fin!D27 -> 0 | L26: =Fin!E27 -> 0 | M26: =Fin!H27 -> 0
J27: =Fin!C28 -> 0 | K27: =Fin!D28 -> 0 | L27: =Fin!E28 -> 0 | M27: =Fin!H28 -> 0
J28: =Fin!C29 -> 0 | K28: =Fin!D29 -> 0 | L28: =Fin!E29 -> 0 | M28: =Fin!H29 -> 0
J29: =Fin!C30 -> 0 | K29: =Fin!D30 -> 0 | L29: =Fin!E30 -> 0 | M29: =Fin!H30 -> 0
J30: =Fin!C31 -> 0 | K30: =Fin!D31 -> 0 | L30: =Fin!E31 -> 0 | M30: =Fin!H31 -> 0
J31: =Fin!C32 -> 0 | K31: =Fin!D32 -> 0 | L31: =Fin!E32 -> 0 | M31: =Fin!H32 -> 0
J32: =Fin!C33 -> 0 | K32: =Fin!D33 -> 0 | L32: =Fin!E33 -> 0 | M32: =Fin!H33 -> 0
J33: =Fin!C34 -> 0 | K33: =Fin!D34 -> 0 | L33: =Fin!E34 -> 0 | M33: =Fin!H34 -> 0
J34: =Fin!C35 -> 0 | K34: =Fin!D35 -> 0 | L34: =Fin!E35 -> 0 | M34: =Fin!H35 -> 0
J35: =Fin!C36 -> 0 | K35: =Fin!D36 -> 0 | L35: =Fin!E36 -> 0 | M35: =Fin!H36 -> 0
J36: =Fin!C37 -> 0 | K36: =Fin!D37 -> 0 | L36: =Fin!E37 -> 0 | M36: =Fin!H37 -> 0
J37: =Fin!C38 -> 0 | K37: =Fin!D38 -> 0 | L37: =Fin!E38 -> 0 | M37: =Fin!H38 -> 0

Sheet Feuil2
W4: =SUM(V9:V39) -> 0
Y6: =100%-N28 ->  | Z6: =N28 -> 
R7: JOUR | S7: GAIN
R8: 1 | S8: 240 | U8: =SUM(S8:S38) -> 780 | AD8: =SUM(S8:S38) -> 780
R9: 2
C10: Course | D10: Favoris | R10: 3
R11: 4 | S11: 180
C12: 8 | D12: =Feuil3!R30 -> 1 | E12: =Feuil3!S30 -> 4 | F12: =Feuil3!T30 -> 3 | R12: 5 | S12: 120
R13: 6 | S13: 240
R14: 7
R15: 8
R16: 9
R17: 10
G18: =INDEX(Total,MATCH(D12,Feuil3!$R$30:$T$30,0)) -> 31.0004 | H18: =INDEX(Total,MATCH(E12,Feuil3!$R$30:$T$30,0)) -> 30.0007 | I18: =INDEX(Total,MATCH(F12,Feuil3!$R$30:$T$30,0)) -> 25.0006 | R18: 11
R19: 12
R20: 13
R21: 14
R22: 15
R23: 16
R24: 17
R25: 18
R26: 19
R27: 20
N28: =(W4)/(I11) ->  | R28: 21
R29: 22
R30: 23
R31: 24
R32: 25
R33: 26
R34: 27
R35: 28
R36: 29
R37: 30
R38: 31

Sheet Feuil3
C1: JANVIER
C2: JOUR | D2: 1 | E2: 2 | F2: 3 | G2: 4 | H2: 5 | I2: 6 | J2: 7 | K2: 8
O3: TOTAL | P3: 1 | Q3: 2 | R3: 3 | S3: 4 | T3: 5 | U3: 6 | V3: 7 | W3: 8
C4: 1 | D4: 2 | E4: P | F4: 2 | G4: 1 | H4: 2 | I4: 1 | J4: P | O4: 1 | P4: =IF(COUNTIFS(D:D,$O4,$C:$C,"<>JOUR")=0,"",COUNTIFS(D:D,$O4,$C:$C,"<>JOUR")+ROW()/10000) -> 31.0004 | Q4: =IF(COUNTIFS(E:E,$O4,$C:$C,"<>JOUR")=0,"",COUNTIFS(E:E,$O4,$C:$C,"<>JOUR")+ROW()/10000) -> 36.0004 | R4: 29.0004 | S4: 31.0004 | T4: 35.0004 | U4: 36.0004 | V4: 40.0004 | W4: 31.0004
C5: 2 | D5: 1 | E5: 3 | F5: 2 | G5: 1 | H5: 1 | I5: 1 | J5: 1 | K5: 4 | O5: 2 | P5: =IF(COUNTIFS(D:D,$O5,$C:$C,"<>JOUR")=0,"",COUNTIFS(D:D,$O5,$C:$C,"<>JOUR")+ROW()/10000) -> 32.0005 | Q5: 25.0005 | R5: 36.0005 | S5: 38.0005 | T5: 27.0005 | U5: 28.0005 | V5: 41.0005 | W5: 21.0005
C6: 3 | D6: P | E6: 1 | F6: P | G6: 2 | H6: P | I6: 1 | J6: 4 | O6: 3 | P6: 30.0006 | Q6: 36.0006 | R6: 29.0006 | S6: 18.0006 | T6: 29.0006 | U6: 33.0006 | V6: 20.0006 | W6: 25.0006
C7: 4 | D7: 3 | E7: 2 | F7: 2 | G7: 3 | H7: 3 | I7: P | J7: 2 | K7: 3 | O7: 4 | P7: 19.0007 | Q7: 27.0007 | R7: 21.0007 | S7: 32.0007 | T7: 23.0007 | U7: 22.0007 | V7: 14.0007 | W7: 30.0007
C8: 5 | D8: P | E8: 3 | F8: P | G8: 1 | H8: 1 | I8: 1 | J8: P | K8: 1 | O8: 5 | P8: 17.0008 | Q8: 12.0008 | R8: 19.0008 | S8: 13.0008 | T8: 18.0008 | U8: 22.0008 | V8: 16.0008 | W8: 14.0008
C9: 6 | D9: 2 | E9: P | F9: 6 | G9: 6 | H9: 5 | I9: 5 | J9: 2 | K9: 4 | O9: 6 | P9: 11.0009 | Q9: 15.0009 | R9: 15.0009 | S9: 13.0009 | T9: 13.0009 | U9: 7.0009 | V9: 12.0009 | W9: 10.0009
C10: 7 | D10: 1 | E10: 4 | F10: 3 | G10: 6 | H10: 5 | I10: 3 | J10: P | K10: 2 | O10: 7
C11: 8 | D11: 1 | E11: 4 | F11: P | G11: 2 | H11: 5 | I11: 1 | J11: 5 | K11: 4 | O11: 8
C12: 9 | D12: P | E12: P | F12: 6 | G12: 4 | H12: P | I12: 6 | J12: 2 | K12: 1 | O12: 9
C13: 10 | D13: 5 | E13: P | F13: 5 | G13: 2 | H13: 6 | I13: 4 | J13: 1 | K13: rem | O13: 10
C14: 11 | D14: P | E14: 4 | F14: 4 | G14: 1 | H14: 2 | I14: 3 | J14: 6 | K14: 1 | O14: 11
C15: 12 | D15: 1 | E15: 5 | F15: P | G15: 4 | H15: 1 | I15: 5 | J15: P | K15: 4 | O15: 12
C16: 13 | D16: P | E16: 1 | F16: 1 | G16: 2 | H16: 1 | I16: 1 | J16: 6 | K16: 2 | O16: 13
C17: 14 | D17: 6 | E17: 4 | F17: 5 | G17: 2 | H17: 3 | J17: 5 | K17: 6 | O17: 14
C18: 15 | D18: 4 | E18: 2 | F18: 3 | G18: 6 | H18: 6 | I18: 2 | J18: 2 | K18: 2 | O18: 15
C19: 16 | D19: 2 | E19: 1 | F19: P | G19: 5 | H19: 5 | I19: 4 | J19: 2 | K19: 4 | O19: 16
C20: 17 | D20: 1 | E20: P | F20: 6 | G20: 2 | H20: 6 | I20: P | J20: 1 | K20: P | O20: 17
C21: 18 | D21: 1 | E21: 1 | F21: 3 | G21: 1 | H21: 6 | I21: 2 | J21: 4 | O21: 18
C22: 19 | D22: 3 | E22: 2 | F22: 2 | G22: 6 | H22: 6 | I22: 3 | J22: 1
C23: 20 | D23: 5 | E23: 1 | F23: 3 | G23: 4 | H23: 4 | I23: 3 | J23: 2
C24: 21 | D24: 6 | E24: P | F24: 4 | G24: P | H24: 6 | I24: 3 | J24: P | O24: Course | P24: 1 | Q24: =P24+1 -> 2 | R24: =Q24+1 -> 3 | S24: 4 | T24: 5 | U24: 6 | V24: 7 | W24: 8 | Y24: Course | Z24: 1 | AA24: =Z24+1 -> 2 | AB24: =AA24+1 -> 3 | AC24: =AB24+1 -> 4 | AD24: =AC24+1 -> 5 | AE24: =AD24+1 -> 6 | AF24: =AE24+1 -> 7 | AG24: =AF24+1 -> 8
C25: 22 | D25: 1 | E25: 2 | F25: P | G25: 4 | H25: 3 | I25: 4 | J25: 2 | K25: 1 | O25: 1 | P25: =INDEX($O$4:$O$21,MATCH(LARGE(P$4:P$21,$O25),P$4:P$21,0)) -> 2 | Q25: =INDEX($O$4:$O$21,MATCH(LARGE(Q$4:Q$21,$O25),Q$4:Q$21,0)) -> 3 | R25: 2 | S25: 2 | T25: 1 | U25: 1 | V25: 2 | W25: 1 | Y25: 1 | Z25: 2 | AB25: 2 | AD25: 1 | AF25: 2
C26: 23 | D26: 5 | E26: 4 | F26: 1 | G26: 2 | H26: 5 | I26: 4 | J26: 2 | O26: 2 | P26: =INDEX($O$4:$O$21,MATCH(LARGE(P$4:P$21,$O26),P$4:P$21,0)) -> 1 | Q26: 1 | R26: 3 | S26: 4 | T26: 3 | U26: 3 | V26: 1 | W26: 4 | Y26: 2 | AA26: 1 | AC26: 4 | AE26: 3 | AG26: 1
C27: 24 | D27: 3 | E27: 6 | F27: P | G27: 3 | H27: 1 | I27: 1 | J27: 1 | K27: 1 | O27: 3 | P27: 3 | Q27: 4 | R27: 1 | S27: 1 | T27: 2 | U27: 2 | V27: 3 | W27: 3 | Y27: 3
C28: 25 | D28: 4 | E28: 2 | F28: 2 | G28: 5 | H28: 4 | I28: 6 | J28: 2 | K28: 1
C29: 26 | D29: P | E29: 2 | F29: 4 | G29: 6 | H29: 6 | I29: 4 | J29: 2 | K29: 2 | Y29: Course | Z29: 1 | AA29: =Z29+1 -> 2 | AB29: =AA29+1 -> 3 | AC29: =AB29+1 -> 4 | AD29: =AC29+1 -> 5 | AE29: =AD29+1 -> 6 | AF29: =AE29+1 -> 7 | AG29: =AF29+1 -> 8
C30: 27 | D30: 1 | E30: 3 | F30: 1 | G30: 2 | H30: P | I30: 6 | J30: P | K30: 3 | O30: Course | P30: =Feuil2!C12 -> 8 | R30: =INDEX(P25:W25,$P$30) -> 1 | S30: =INDEX(P26:W26,$P$30) -> 4 | T30: =INDEX(P27:W27,$P$30) -> 3 | Y30: 1
C31: 28 | D31: 3 | E31: 6 | F31: 1 | G31: P | H31: 2 | I31: P | J31: P | K31: 6 | O31: Total | R31: =INDEX($P$4:$W$21,R30,$P$30) -> 31.0004 | S31: =INDEX($P$4:$W$21,S30,$P$30) -> 30.0007 | T31: 25.0006 | Y31: 2 | Z31: 3 | AB31: 3 | AD31: 3 | AF31: 1
C32: 29 | D32: 3 | E32: 2 | F32: 6 | G32: 6 | H32: P | I32: 4 | J32: 2 | Y32: 3 | AA32: 2 | AC32: 1 | AE32: 2 | AG32: 3
C33: 30 | D33: 2 | E33: 4 | F33: P | G33: 3 | H33: 6 | I33: P | J33: P | K33: 5
C34: 31 | D34: 2 | E34: 4 | F34: 2 | G34: 4 | H34: P | I34: P | J34: P | K34: 3 | Y34: Course | Z34: 1 | AA34: =Z34+1 -> 2 | AB34: =AA34+1 -> 3 | AC34: =AB34+1 -> 4 | AD34: =AC34+1 -> 5 | AE34: =AD34+1 -> 6 | AF34: =AE34+1 -> 7 | AG34: =AF34+1 -> 8
C35: FEVRIER | Y35: 1 | Z35: 2 | AD35: 1 | AG35: 4
C36: JOUR | D36: 1 | E36: 2 | F36: 3 | G36: 4 | H36: 5 | I36: 6 | J36: 7 | K36: 8 | Y36: 2 | AA36: 1 | AC36: 4 | AE36: 3
B37: FEVRIER | C37: 1 | D37: 2 | E37: P | F37: 2 | G37: 2 | H37: 1 | I37: 5 | Y37: 3 | AB37: 1 | AF37: 3
B38: FEVRIER | C38: 2 | D38: 1 | E38: P | F38: 4 | G38: 3 | H38: 1 | I38: 2 | J38: P | K38: 3
B39: FEVRIER | C39: 3 | D39: P | E39: 6 | F39: 1 | G39: 2 | H39: 6 | I39: P | J39: 3 | K39: 4
B40: FEVRIER | C40: 4 | D40: p | E40: 3 | F40: 3 | G40: 4 | H40: 3 | I40: 5 | J40: 1 | K40: 4 | Y40: Course | Z40: 1 | AA40: =Z40+1 -> 2 | AB40: =AA40+1 -> 3 | AC40: =AB40+1 -> 4 | AD40: =AC40+1 -> 5 | AE40: =AD40+1 -> 6 | AF40: =AE40+1 -> 7 | AG40: =AF40+1 -> 8
B41: FEVRIER | C41: 5 | D41: p | E41: p | F41: 3 | G41: 1 | H41: p | I41: 2 | J41: 6 | K41: 6 | Y41: 1 | AA41: 3 | AC41: 2 | AE41: 1 | AG41: 4
B42: FEVRIER | C42: 6 | D42: 3 | E42: 1 | F42: 1 | G42: P | H42: 5 | I42: 1 | J42: 6 | K42: 2 | Y42: 2
B43: FEVRIER | C43: 7 | D43: P | E43: P | F43: 1 | G43: P | H43: 1 | I43: P | J43: 6 | Y43: 3 | Z43: 1 | AB43: 1 | AD43: 2 | AF43: 3
B44: FEVRIER | C44: 8 | D44: 4 | E44: 1 | F44: 2 | G44: p | H44: 4 | I44: p | J44: p | K44: p
B45: FEVRIER | C45: 9 | D45: P | E45: 4 | F45: 3 | G45: P | H45: P | I45: 1 | J45: P | K45: 1
B46: FEVRIER | C46: 10 | D46: P | E46: 3 | F46: 1 | G46: 4 | H46: 3 | I46: P | J46: 4 | K46: 3
B47: FEVRIER | C47: 11 | D47: 2 | E47: p | F47: 2 | G47: 3 | H47: 3 | I47: p | J47: 6 | K47: 4
B48: FEVRIER | C48: 12 | D48: P | E48: 3 | F48: 3 | G48: P | H48: 3 | I48: 4 | J48: 1 | K48: 4
B49: FEVRIER | C49: 13 | D49: P | E49: P | F49: 2 | G49: P | H49: 4 | I49: P | J49: 1
B50: FEVRIER | C50: 14 | D50: 6 | E50: 6 | F50: 5 | G50: 1 | H50: 5 | I50: 3 | J50: 3
B51: FEVRIER | C51: 15 | D51: P | E51: 6 | F51: 2 | G51: 6 | H51: 3 | I51: 5 | J51: 3
B52: FEVRIER | C52: 16 | D52: 5 | E52: p | F52: 5 | G52: 2 | H52: 3 | I52: 1 | J52: 2 | K52: 6
B53: FEVRIER | C53: 17 | D53: P | E53: 3 | F53: 3 | G53: 2 | H53: P | I53: P | J53: 1
B54: FEVRIER | C54: 18 | D54: 3 | E54: 1 | F54: 1 | G54: 1 | H54: 2 | I54: 1 | J54: 2 | K54: 4
B55: FEVRIER | C55: 19 | D55: 3 | E55: 4 | F55: 4 | G55: p | H55: 1 | I55: 1 | J55: 2 | K55: rem
B56: FEVRIER | C56: 20 | D56: 4 | E56: 2 | F56: 1 | G56: 2 | H56: 1 | I56: 3 | J56: 2
B57: FEVRIER | C57: 21 | D57: P | E57: 3 | F57: 4 | G57: P | H57: 4 | I57: 2 | J57: 3 | K57: 1
B58: FEVRIER | C58: 22 | D58: 5 | E58: 3 | F58: 5 | G58: 1 | H58: P | I58: 3 | J58: 2 | K58: 4
B59: FEVRIER | C59: 23 | D59: 4 | E59: 6 | F59: 1 | G59: 4 | H59: 2 | I59: 1 | J59: 2 | K59: 1
B60: FEVRIER | C60: 24 | D60: 2 | E60: 4 | F60: 3 | G60: P | H60: 2 | I60: 2 | J60: 5 | K60: 2
B61: FEVRIER | C61: 25 | D61: P | E61: 6 | F61: P | G61: 4 | H61: 6 | I61: P | J61: 5 | K61: P
B62: FEVRIER | C62: 26 | D62: 4 | E62: 2 | F62: 6 | G62: 1 | H62: 1 | I62: 3 | J62: p | K62: 4
B63: FEVRIER | C63: 27 | D63: P | E63: P | F63: P | G63: 3 | H63: 4 | I63: 4 | J63: 2
B64: FEVRIER | C64: 28 | D64: p | E64: 3 | F64: rem | G64: 4 | H64: 4 | I64: 1 | J64: p | K64: 1
C65: MARS
C66: JOUR | D66: 1 | E66: 2 | F66: 3 | G66: 4 | H66: 5 | I66: 6 | J66: 7 | K66: 8
B67: MARS | C67: 1 | D67: p | E67: 6 | F67: 5 | G67: 4 | H67: 2 | I67: 2 | J67: 4 | K67: 3
B68: MARS | C68: 2 | D68: P | E68: 3 | F68: P | G68: 2 | H68: 1 | I68: 2 | J68: 6 | K68: 3
B69: MARS | C69: 3 | D69: P | E69: 3 | F69: 6 | G69: P | H69: P | I69: P | J69: 3 | K69: 2
B70: MARS | C70: 4 | D70: 4 | E70: 1 | F70: 2 | G70: 6 | H70: 3 | I70: 2 | J70: 6 | K70: 1
B71: MARS | C71: 5 | D71: 4 | E71: P | F71: 2 | G71: 4 | H71: 3 | I71: P | J71: 2 | K71: 6
B72: MARS | C72: 6 | D72: 1 | E72: 3 | F72: 3 | G72: 2 | H72: 3 | I72: 1 | J72: 1 | K72: 6
B73: MARS | C73: 7 | D73: P | E73: P | F73: 5 | G73: 2 | H73: P | I73: 3 | J73: 1 | K73: 2
B74: MARS | C74: 8 | D74: 1 | E74: 5 | F74: 2 | G74: 4 | H74: 4 | I74: 4 | J74: p | K74: 2
B75: MARS | C75: 9 | D75: P | E75: 1 | F75: 4 | G75: 5 | H75: 4 | I75: 4 | J75: 2 | K75: 1
B76: MARS | C76: 10 | D76: 6 | E76: 3 | F76: 2 | G76: 2 | H76: 4 | I76: 2 | J76: 2 | K76: 5
B77: MARS | C77: 11 | D77: 4 | E77: 3 | F77: 3 | G77: 1 | H77: P | I77: 3 | J77: P
B78: MARS | C78: 12 | D78: 2 | E78: p | F78: 1 | G78: 6 | H78: 3 | I78: 4 | J78: 2 | K78: 1
B79: MARS | C79: 13 | D79: 3 | E79: 3 | F79: 3 | G79: 1 | H79: 5 | I79: 3 | J79: 1 | K79: 2
B80: MARS | C80: 14 | D80: p | E80: 4 | F80: 2 | G80: p | H80: 2 | I80: 2 | J80: 5 | K80: 3
B81: MARS | C81: 15 | D81: 2 | E81: 2 | F81: P | G81: 3 | H81: P | I81: 1 | J81: 2 | K81: 5
B82: MARS | C82: 16 | D82: 4 | E82: 5 | F82: 4 | G82: 1 | H82: 1 | I82: 5 | J82: p | K82: 4
B83: MARS | C83: 17 | D83: 2 | E83: 3 | F83: P | G83: P | H83: 4 | I83: 2 | J83: 2 | K83: 3
B84: MARS | C84: 18 | D84: 2 | E84: 2 | F84: 6 | G84: 1 | H84: 1 | I84: 4 | J84: 2
B85: MARS | C85: 19 | D85: 3 | E85: 1 | F85: p | G85: p | H85: 1 | I85: 5 | J85: 1 | K85: 1
B86: MARS | C86: 20 | D86: 2 | E86: 2 | F86: 4 | G86: p | H86: p | I86: 6 | J86: p | K86: p
B87: MARS | C87: 21 | D87: p | E87: 1 | F87: 4 | G87: 4 | H87: p | I87: 2 | J87: 1 | K87: 4
B88: MARS | C88: 22 | D88: 1 | E88: 3 | F88: 2 | G88: 3 | H88: 1 | I88: 2 | J88: 5 | K88: 2
B89: MARS | C89: 23 | D89: 3 | E89: 2 | F89: 5 | G89: 3 | H89: 3 | I89: 3 | J89: 1
B90: MARS | C90: 24 | D90: p | E90: 5 | F90: 5 | G90: p | H90: 4 | I90: 5 | J90: 1 | K90: 4
B91: MARS | C91: 25 | D91: 5 | E91: P | F91: 6 | G91: 1 | H91: P | I91: P | J91: 3
B92: MARS | C92: 26 | D92: 2 | E92: 2 | F92: 2 | G92: 4 | H92: 1 | I92: P | J92: 4 | K92: 3
B93: MARS | C93: 27 | D93: 3 | E93: 3 | F93: p | G93: 4 | H93: 2 | I93: 4 | J93: 3 | K93: 1
B94: MARS | C94: 28 | D94: 5 | E94: 3 | F94: 3 | G94: 5 | H94: p | I94: 2 | J94: 2 | K94: 1
B95: MARS | C95: 29 | D95: 2 | E95: 4 | F95: 3 | G95: 2 | H95: 1 | I95: 1 | J95: p | K95: 3
B96: MARS | C96: 30 | D96: P | E96: P | F96: 1 | G96: 3 | H96: 5 | I96: 2 | J96: 1 | K96: 5
B97: MARS | C97: 31 | D97: 5 | E97: p | F97: 3 | G97: 1 | H97: 3 | I97: 3 | J97: 1 | K97: 4
C98: AVRIL
C99: JOUR | D99: 1 | E99: 2 | F99: 3 | G99: 4 | H99: 5 | I99: 6 | J99: 7 | K99: 8
B100: AVRIL | C100: 1 | D100: 3 | E100: 1 | F100: 2 | G100: 4 | H100: 5 | I100: P | J100: 4
B101: AVRIL | C101: 2 | D101: 6 | E101: 2 | F101: p | G101: 4 | H101: 5 | I101: 3 | J101: 1 | K101: 4
B102: AVRIL | C102: 3 | D102: p | E102: 3 | F102: p | G102: 4 | H102: p | I102: p | J102: 1 | K102: 4
B103: AVRIL | C103: 4 | D103: 1 | E103: 2 | F103: 4 | G103: 1 | H103: 5 | I103: 1 | J103: p | K103: 1
B104: AVRIL | C104: 5 | D104: 5 | E104: 3 | F104: 2 | G104: 6 | H104: 3 | I104: 5 | J104: 2 | K104: 2
B105: AVRIL | C105: 6 | D105: 2 | E105: 4 | F105: 3 | G105: 3 | H105: P | I105: 4 | J105: 4 | K105: 5
B106: AVRIL | C106: 7 | D106: p | E106: 4 | F106: 1 | G106: 5 | H106: p | I106: 3 | J106: 1 | K106: 1
B107: AVRIL | C107: 8 | D107: 1 | E107: P | F107: 6 | G107: 2 | H107: P | I107: 3 | J107: 2
B108: AVRIL | C108: 9 | D108: P | E108: 5 | F108: 2 | G108: P | H108: 4 | I108: 3 | J108: P | K108: 1
B109: AVRIL | C109: 10 | D109: 4 | E109: 5 | F109: 4 | G109: 5 | H109: 3 | I109: 3 | J109: 3 | K109: p
B110: AVRIL | C110: 11 | D110: 3 | E110: 3 | F110: p | G110: 1 | H110: 3 | I110: 1 | J110: p | K110: 1
B111: AVRIL | C111: 12 | D111: 5 | E111: 1 | F111: 2 | G111: p | H111: 1 | I111: 4 | J111: p | K111: p
B112: AVRIL | C112: 13 | D112: P | E112: 1 | F112: P | G112: P | H112: 3 | I112: 3 | J112: 2 | K112: 4
B113: AVRIL | C113: 14 | D113: 1 | E113: 2 | F113: 5 | G113: 2 | H113: 2 | I113: 6 | J113: p | K113: 4
B114: AVRIL | C114: 15 | D114: 3 | E114: 2 | F114: 3 | G114: P | H114: 3 | I114: 2 | J114: 5
B115: AVRIL | C115: 16 | D115: 2 | E115: 2 | F115: 4 | G115: 4 | H115: P | I115: 5 | J115: 6 | K115: 2
B116: AVRIL | C116: 17 | D116: 4 | E116: 3 | F116: 2 | G116: p | H116: 5 | I116: 2 | J116: 5 | K116: 4
B117: AVRIL | C117: 18 | D117: 3 | E117: 6 | F117: 4 | G117: 1 | H117: 2 | I117: 3 | J117: 2 | K117: 4
B118: AVRIL | C118: 19 | D118: 1 | E118: 5 | F118: 5 | G118: 2 | H118: 4 | I118: 3 | J118: 3 | K118: 5
B119: AVRIL | C119: 20 | D119: 5 | E119: 2 | F119: 5 | G119: 1 | H119: 4 | I119: P | J119: 3 | K119: 4
B120: AVRIL | C120: 21 | D120: 3 | E120: 1 | F120: 2 | G120: 3 | H120: 2 | I120: 4 | J120: p | K120: 2
B121: AVRIL | C121: 22 | D121: 3 | E121: 1 | F121: 1 | G121: 4 | H121: P | I121: 4 | J121: 4
B122: AVRIL | C122: 23 | D122: 4 | E122: P | F122: 6 | G122: 5 | H122: 1 | I122: P | J122: 2 | K122: 4
B123: AVRIL | C123: 24
B124: AVRIL | C124: 25 | D124: 6 | E124: 1 | F124: p | G124: 2 | H124: 5 | I124: 1 | J124: p | K124: 3
B125: AVRIL | C125: 26 | D125: 3 | E125: 2 | F125: 3 | G125: 1 | H125: 1 | I125: 1 | J125: p | K125: 5
B126: AVRIL | C126: 27 | D126: 2 | E126: 1 | F126: 2 | G126: 4 | H126: 3 | I126: P | J126: P
B127: AVRIL | C127: 28 | D127: p | E127: 3 | F127: 2 | G127: 4 | H127: 3 | I127: 5 | J127: 5 | K127: 4
B128: AVRIL | C128: 29 | D128: 1 | E128: 3 | F128: 6 | G128: 1 | H128: P | I128: 3 | J128: 1
B129: AVRIL | C129: 30 | D129: 1 | E129: 1 | F129: 5 | G129: 4 | H129: 2 | I129: 5 | J129: 1 | K129: 1
C130: MAI
C131: JOUR | D131: 1 | E131: 2 | F131: 3 | G131: 4 | H131: 5 | I131: 6 | J131: 7 | K131: 8
B132: MAI | C132: 1 | D132: 6 | E132: 4 | F132: 3 | G132: 5 | H132: 2 | I132: 5 | J132: 4 | K132: 3
B133: MAI | C133: 2 | D133: 3 | E133: 4 | F133: P | G133: P | H133: 5 | I133: 2 | J133: 2 | K133: 3
B134: MAI | C134: 3 | D134: 2 | E134: 4 | F134: 1 | G134: 2 | H134: 3 | I134: p | J134: p | K134: 4
B135: MAI | C135: 4 | D135: p | E135: 3 | F135: 5 | G135: 2 | H135: p | I135: p | J135: 6 | K135: p
B136: MAI | C136: 5 | D136: p | E136: 6 | F136: 3 | G136: 2 | H136: 6 | I136: p | J136: 2 | K136: 3
B137: MAI | C137: 6 | D137: 1 | E137: 3 | F137: 5 | G137: P | H137: 2 | I137: P | J137: 2
B138: MAI | C138: 7 | D138: 3 | E138: P | F138: 1 | G138: 4 | H138: 1 | I138: 2 | J138: 4 | K138: 5
B139: MAI | C139: 8 | D139: 6 | E139: 1 | F139: p | G139: 2 | H139: 2 | I139: 5 | J139: 5 | K139: p
B140: MAI | C140: 9 | D140: p | E140: 1 | F140: 2 | G140: p | H140: 3 | I140: 3 | J140: 1 | K140: 6
B141: MAI | C141: 10 | D141: 4 | E141: 3 | F141: 1 | G141: 6 | H141: 3 | I141: p | J141: 1 | K141: 1
B142: MAI | C142: 11 | D142: 2 | E142: 1 | F142: 1 | G142: 5 | H142: 3 | I142: 1 | J142: 3 | K142: p
B143: MAI | C143: 12 | D143: 2 | E143: 1 | F143: 4 | G143: p | H143: p | I143: 4 | J143: p
B144: MAI | C144: 13 | D144: 1 | E144: P | F144: 2 | G144: 4 | H144: 1 | I144: P | J144: 5
B145: MAI | C145: 14 | D145: 1 | E145: 6 | F145: 5 | G145: P | H145: 4 | I145: 2 | J145: 2 | K145: 2
B146: MAI | C146: 15 | D146: 2 | E146: 1 | F146: 2 | G146: 2 | H146: p | I146: p | J146: 2 | K146: 3
B147: MAI | C147: 16 | D147: 5 | E147: 3 | F147: 3 | G147: 3 | H147: P | I147: 3 | J147: 4 | K147: 1
B148: MAI | C148: 17 | D148: 2 | E148: 2 | F148: 6 | G148: 2 | H148: 1 | I148: 2 | J148: 1 | K148: 3
B149: MAI | C149: 18 | D149: P | E149: P | F149: 2 | G149: 2 | H149: 1 | I149: 5 | J149: 3 | K149: 1
B150: MAI | C150: 19 | D150: 1 | E150: 5 | F150: 1 | G150: 1 | H150: p | I150: 1 | J150: p | K150: p
B151: MAI | C151: 20 | D151: 3 | E151: 1 | F151: 6 | G151: 1 | H151: 2 | I151: 5 | J151: 1
B152: MAI | C152: 21 | D152: 2 | E152: 6 | F152: 2 | G152: 1 | H152: 4 | I152: 4 | J152: p
B153: MAI | C153: 22 | D153: 1 | E153: 5 | F153: p | G153: 5 | H153: p | I153: 5 | J153: 3 | K153: p
B154: MAI | C154: 23 | D154: 3 | E154: 4 | F154: 1 | G154: p | H154: 1 | I154: 1 | J154: p | K154: 4
B155: MAI | C155: 24 | D155: p | E155: 4 | F155: 1 | G155: 5 | H155: 1 | I155: 1 | J155: 3 | K155: p
B156: MAI | C156: 25 | D156: P | E156: 4 | F156: P | G156: P | H156: 6 | I156: 4 | J156: P | K156: 1
B157: MAI | C157: 26 | D157: 3 | E157: 6 | F157: 5 | G157: 1 | H157: 5 | I157: 3 | J157: 5 | K157: 3
B158: MAI | C158: 27 | D158: 3 | E158: 2 | F158: P | G158: P | H158: 1 | I158: 1 | J158: 2
B159: MAI | C159: 28 | D159: 2 | E159: P | F159: P | G159: 2 | H159: P | I159: P | J159: 2 | K159: 2
B160: MAI | C160: 29 | D160: p | E160: 4 | F160: p | G160: 2 | H160: 5 | I160: 1 | J160: 5 | K160: 1
B161: MAI | C161: 30 | D161: 2 | E161: 4 | F161: 4 | G161: p | H161: 1 | I161: 3 | J161: p | K161: 5
B162: MAI | C162: 31 | D162: 4 | E162: 1 | F162: 4 | G162: 5 | H162: 2 | I162: 6 | J162: p | K162: 2
C163: JUIN
C164: JOUR | D164: 1 | E164: 2 | F164: 3 | G164: 4 | H164: 5 | I164: 6 | J164: 7 | K164: 8
C165: 1 | D165: p | E165: 6 | F165: 1 | G165: p | H165: 2 | I165: 1 | J165: 2 | K165: 3
C166: 2 | D166: 2 | E166: 3 | F166: 4 | G166: p | H166: 1 | I166: 5 | J166: 5 | K166: 6
B167: jun | C167: 3 | D167: p | E167: p | F167: 3 | G167: 4 | H167: 2 | I167: 2 | J167: 1
C168: 4 | D168: p | E168: 3 | F168: 2 | G168: 2 | H168: 2 | I168: p | J168: 3 | K168: 5
C169: 5 | D169: 2 | E169: 1 | F169: 3 | G169: 4 | H169: p | I169: p | J169: 3 | K169: 3
C170: 6 | D170: 2 | E170: 3 | F170: p | G170: 1 | H170: 1 | I170: 3 | J170: 1 | K170: 3
C171: 7 | D171: 4 | E171: 1 | F171: 3 | G171: 1 | H171: 3 | J171: 1 | K171: 4
C172: 8 | D172: 5 | E172: 5 | F172: p | G172: 2 | H172: 6 | I172: 3 | J172: 1 | K172: 3
C173: 9 | D173: 3 | E173: 1 | F173: 2 | G173: 2 | H173: 4 | I173: 1 | J173: 1 | K173: 3
C174: 10 | D174: 1 | E174: 3 | F174: 2 | G174: 2 | H174: p | I174: p | J174: 3
C175: 11 | D175: p | E175: p | F175: 5 | G175: 4 | H175: 2 | I175: 2 | J175: p | K175: p
C176: 12 | D176: 2 | E176: 2 | F176: 1 | G176: p | H176: p | I176: 2 | J176: p | K176: 3
C177: 13 | D177: 6 | E177: p | F177: p | G177: 1 | H177: 4 | I177: 5 | J177: p | K177: 5
C178: 14 | D178: 6 | E178: P | F178: 2 | G178: 4 | H178: 4 | I178: 1 | J178: 2 | K178: 5
C179: 15 | D179: p | E179: 1 | F179: 4 | G179: p | H179: 2 | I179: 5 | J179: p | K179: 5
C180: 16 | D180: 2 | E180: 6 | F180: p | G180: p | H180: 3 | I180: 3 | J180: 6 | K180: 1
C181: 17 | D181: 4 | E181: p | F181: p | G181: 5 | H181: p | I181: 1 | J181: 1 | K181: p
C182: 18 | D182: 6 | E182: 4 | F182: 1 | G182: 4 | H182: 1 | I182: 3 | J182: 3 | K182: 3
C183: 19 | D183: 1 | E183: 1 | F183: p | G183: 3 | H183: p | I183: 1 | J183: 1 | K183: p
C184: 20 | D184: 5 | E184: 2 | F184: 1 | G184: 6 | H184: p | I184: 3 | J184: 3 | K184: 4
C185: 21 | D185: 1 | E185: 1 | F185: 3 | G185: p | H185: p | I185: 5 | J185: 3 | K185: 4
C186: 22 | D186: 3 | E186: 3 | F186: p | G186: 1 | H186: p | I186: 1 | J186: 5 | K186: 1
C187: 23 | D187: 4 | E187: 3 | F187: 1 | G187: 3 | H187: 1 | I187: 1 | J187: 1 | K187: 1
C188: 24 | D188: 5 | E188: 4 | F188: 3 | G188: p | H188: 5 | I188: 4 | J188: 1
C189: 25 | D189: 1 | E189: 5 | F189: 3 | G189: 3 | H189: p | I189: 3 | J189: 1 | K189: 2
C190: 26 | D190: 5 | E190: p | F190: 4 | G190: p | H190: 2 | I190: p | J190: 1 | K190: 1
C191: 27 | D191: 3 | E191: p | F191: 4 | G191: 2 | H191: 3 | I191: 2 | J191: 4 | K191: 2
C192: 28 | D192: 1 | E192: 1 | F192: 6 | G192: 6 | H192: p | I192: 1 | J192: p | K192: 6
C193: 29 | D193: 4 | E193: 1 | F193: p | G193: 4 | H193: 2 | I193: p | J193: 5 | K193: 1
C194: 30 | D194: 1 | E194: 1 | F194: 2 | G194: p | H194: 1 | I194: 6 | J194: 1 | K194: 2
C195: JUILLET
C196: JOUR | D196: 1 | E196: 2 | F196: 3 | G196: 4 | H196: 5 | I196: 6 | J196: 7 | K196: 8
C197: 1 | D197: 5 | E197: 4 | F197: 3 | G197: 3 | H197: 4 | I197: 2 | J197: 4
C198: 2 | D198: 2 | E198: 4 | F198: 5 | G198: 2 | H198: 2 | I198: 4 | J198: 4 | K198: p
C199: 3 | D199: 1 | E199: p | F199: 1 | G199: p | H199: 4 | I199: 1 | J199: 2 | K199: 5
C200: 4 | D200: 3 | E200: 5 | F200: 1 | G200: 1 | H200: 1 | I200: p | J200: 1 | K200: p
... 190 more rows

Sheet Feuil4
J2: Définition Points | L2: 100 | Q2: GAIN DU JOUR
B4: Course | C4: Chevaux | D4: Mises Points | E4: Mises Euros | F4: Cotes SP | G4: Résultat | H4: Balance Point SG | J4: Point | K4: Euros | L4: résultats | M4: GAIN | Q4: =SUM(M5+M18+M32) -> 0
B5: 1 | D5: 2 | E5: =L2*D5 -> 200 | G5: =IF(ISBLANK(F5),((D5)-(D5+D5)),(D5*F5)) -> -2 | H5: =IF(C5="","",G5) ->  | J5: =H5 ->  | K5: =L2 -> 100 | L5: =IF(H5="","",F5*E5-E5) ->  | M5: =SUM(L5:L12) -> 0
B6: 2 | D6: =IF(AND(F5=0,D5=2),4,IF(AND(F5=0,D5=4),7,IF(AND(F5=0,D5=7),11,IF(AND(F5=0,D5=11),16,IF(AND(F5=0,D5=16),23,2))))) -> 4 | E6: =L2*D6 -> 400 | G6: =IF(ISBLANK(F6),((D6)-(D6+D6)),(D6*F6)) -> -4 | H6: =IF(C6="","",G6) ->  | K6: =L2 -> 100
B7: 3 | D7: =IF(AND(F6=0,D6=2),4,IF(AND(F6=0,D6=4),7,IF(AND(F6=0,D6=7),11,IF(AND(F6=0,D6=11),16,IF(AND(F6=0,D6=16),23,2))))) -> 7 | E7: =L2*D7 -> 700 | G7: -7 | K7: =L2 -> 100
B8: 4 | D8: =IF(AND(F7=0,D7=2),4,IF(AND(F7=0,D7=4),7,IF(AND(F7=0,D7=7),11,IF(AND(F7=0,D7=11),16,IF(AND(F7=0,D7=16),23,2))))) -> 11 | E8: =L2*D8 -> 1100 | G8: -11 | K8: =L2 -> 100
B9: 5 | D9: =IF(AND(F8=0,D8=2),4,IF(AND(F8=0,D8=4),7,IF(AND(F8=0,D8=7),11,IF(AND(F8=0,D8=11),16,IF(AND(F8=0,D8=16),23,2))))) -> 16 | E9: =L2*D9 -> 1600 | G9: -16 | K9: =L2 -> 100
B10: 6 | D10: =IF(AND(F9=0,D9=2),4,IF(AND(F9=0,D9=4),7,IF(AND(F9=0,D9=7),11,IF(AND(F9=0,D9=11),16,IF(AND(F9=0,D9=16),23,2))))) -> 23 | E10: =L2*D10 -> 2300 | G10: -23 | K10: =L2 -> 100
B11: 7 | D11: =IF(AND(F10=0,D10=2),4,IF(AND(F10=0,D10=4),7,IF(AND(F10=0,D10=7),11,IF(AND(F10=0,D10=11),16,IF(AND(F10=0,D10=16),23,2))))) -> 2 | E11: =L2*D11 -> 200 | G11: -2 | K11: =L2 -> 100
B12: 8 | D12: 4 | E12: =L2*D12 -> 400 | G12: -4 | K12: =L2 -> 100
J17: Définition Points | L17: 100
B19: Course | C19: Chevaux | D19: Mises Points | E19: Mises Euros | F19: Cotes SG | G19: Résultat | H19: Balance Point SG | J19: Point | K19: Euros | L19: résultats | M19: GAIN
B20: 1 | C20: 1 | D20: 2 | E20: =L17*D20 -> 200 | G20: =IF(ISBLANK(F20),((D20)-(D20+D20)),(D20*F20)) -> -2 | H20: =IF(C20="","",G20) -> -2 | J20: =H20 -> -2 | K20: =L17 -> 100 | L20: =IF(H20="","",F20*E20-E20) -> -200 | M20: =SUM(L20:L27) -> -200
B21: 2 | D21: =IF(AND(F20=0,D20=2),4,IF(AND(F20=0,D20=4),7,IF(AND(F20=0,D20=7),11,IF(AND(F20=0,D20=11),16,IF(AND(F20=0,D20=16),23,2))))) -> 4 | E21: =L17*D21 -> 400 | G21: =IF(ISBLANK(F21),((D21)-(D21+D21)),(D21*F21)) -> -4 | H21: =IF(C21="","",G21) ->  | K21: =L17 -> 100
B22: 3 | D22: =IF(AND(F21=0,D21=2),4,IF(AND(F21=0,D21=4),7,IF(AND(F21=0,D21=7),11,IF(AND(F21=0,D21=11),16,IF(AND(F21=0,D21=16),23,2))))) -> 7 | E22: =L17*D22 -> 700 | G22: -7 | K22: =L17 -> 100
B23: 4 | D23: =IF(AND(F22=0,D22=2),4,IF(AND(F22=0,D22=4),7,IF(AND(F22=0,D22=7),11,IF(AND(F22=0,D22=11),16,IF(AND(F22=0,D22=16),23,2))))) -> 11 | E23: =L17*D23 -> 1100 | G23: -11 | K23: =L17 -> 100
B24: 5 | D24: =IF(AND(F23=0,D23=2),4,IF(AND(F23=0,D23=4),7,IF(AND(F23=0,D23=7),11,IF(AND(F23=0,D23=11),16,IF(AND(F23=0,D23=16),23,2))))) -> 16 | E24: =L17*D24 -> 1600 | G24: -16 | K24: =L17 -> 100
B25: 6 | D25: =IF(AND(F24=0,D24=2),4,IF(AND(F24=0,D24=4),7,IF(AND(F24=0,D24=7),11,IF(AND(F24=0,D24=11),16,IF(AND(F24=0,D24=16),23,2))))) -> 23 | E25: =L17*D25 -> 2300 | G25: -23 | K25: =L17 -> 100
B26: 7 | D26: =IF(AND(F25=0,D25=2),4,IF(AND(F25=0,D25=4),7,IF(AND(F25=0,D25=7),11,IF(AND(F25=0,D25=11),16,IF(AND(F25=0,D25=16),23,2))))) -> 2 | E26: =L17*D26 -> 200 | G26: -2 | K26: =L17 -> 100
B27: 8 | D27: 4 | E27: =L17*D27 -> 400 | G27: -4 | K27: =L17 -> 100

Sheet TEST
C13: RCRX | D13: HIPPODROME | E13: DÉPART | F13: DISC | G13: PART | H13: CHEVAL | J13: RCRX | K13: HIPPODROME | L13: DÉPART | M13: CHEVAL
C14: ='Mes Jeux'!C4 -> R3C2 | D14: ='Mes Jeux'!D4 -> LA-TESTE | E14: ='Mes Jeux'!E4 -> 12H15 | F14: ='Mes Jeux'!F4 -> Haies | G14: ='Mes Jeux'!G4 -> 8 | H14: ='Mes Jeux'!H4 -> 3
C15: ='Mes Jeux'!C5 -> R2C5 | D15: ='Mes Jeux'!D5 -> SENONNES-POUANCE | E15: ='Mes Jeux'!E5 -> 14H02 | F15: ='Mes Jeux'!F5 -> Plat | G15: ='Mes Jeux'!G5 -> 9 | H15: ='Mes Jeux'!H5 -> 6 | J15: ='Mes Jeux'!J4 -> R2C2 | K15: ='Mes Jeux'!K4 -> TONGRES | L15: ='Mes Jeux'!L4 -> 12H30 | M15: ='Mes Jeux'!M4 -> 0
J16: ='Mes Jeux'!J5 -> R3C1 | K16: ='Mes Jeux'!K5 -> NANTES | L16: ='Mes Jeux'!L5 -> 12H45 | M16: ='Mes Jeux'!M5 -> 0
J17: ='Mes Jeux'!J6 -> R3C2 | K17: ='Mes Jeux'!K6 -> NANTES | L17: ='Mes Jeux'!L6 -> 13H15 | M17: ='Mes Jeux'!M6 -> 0
